bitfinex-derivatives/quotes_BNBF0:USTF0_20250101
["timestamp","ask_amount","ask_price","bid_price","bid_amount"]
[1735770410533,0.88742427,707.87,707.14,0.28282942]
[1735770410725,0.88742427,707.86,707.14,0.28282942]
[1735770410930,0.88742427,707.85,707.14,0.28282942]
[1735770411133,0.88714723,707.84,707.14,0.28282942]
[1735770411432,0.88714723,707.83,707.14,0.28282942]
[1735770411632,0.88714723,707.82,707.14,0.28282942]
[1735770411828,0.703,707.97,707.14,0.28282942]
[1735770412030,0.88702054,707.96,707.14,0.28282942]
[1735770412328,0.88702054,707.95,707.14,0.28282942]
[1735770412528,0.88702054,707.94,707.14,0.28282942]
[1735770412727,0.88702054,707.93,707.14,0.28282942]
[1735770412929,0.703,707.97,707.14,0.28282942]
[1735770412930,0.88702054,707.92,707.14,0.28282942]
[1735770413133,0.88702054,707.91,707.14,0.28282942]
[1735770413431,0.88702054,707.9,707.14,0.28282942]
[1735770413632,0.88702054,707.89,707.14,0.28282942]
[1735770413829,0.88702054,707.88,707.14,0.28282942]
[1735770414030,1.47571224,708.11,707.14,0.28282942]
[1735770414230,0.88683962,708.1,707.14,0.28282942]
[1735770414433,0.88683962,708.09,707.14,0.28282942]
[1735770414635,0.88683962,708.08,707.14,0.28282942]
[1735770414935,0.88683962,708.07,707.14,0.28282942]
[1735770415138,1.58983962,708.06,707.14,0.28282942]
[1735770415336,0.88683962,708.05,707.14,0.28282942]
[1735770415637,0.88683962,708.04,707.14,0.28282942]
[1735770415837,0.88683962,708.03,707.14,0.28282942]
[1735770416037,0.88683962,708.02,707.14,0.28282942]
[1735770416230,0.88683962,708.01,707.14,0.28282942]
[1735770416430,0.88683962,708.0,707.14,0.28282942]
[1735770416634,0.88683962,707.99,707.14,0.28282942]
[1735770416830,0.88683962,707.98,707.14,0.28282942]
[1735770417028,0.88683962,707.97,707.14,0.28282942]
[1735770417229,0.88671036,707.96,707.14,0.28282942]
[1735770417436,0.88671036,707.95,707.14,0.28282942]
[1735770417735,0.88671036,707.94,707.15,1.05648785]
[1735770417934,0.88671036,707.93,707.15,1.05648785]
[1735770418238,0.88671036,707.92,707.15,1.05648785]
[1735770418433,0.88671036,707.91,707.15,1.05648785]
[1735770418629,0.88671036,707.9,707.15,1.05648785]
[1735770418835,0.88671036,707.89,707.17,1.05648785]
[1735770419031,0.88671036,707.88,707.17,1.05648785]
[1735770419231,0.88671036,707.87,707.17,1.05648785]
[1735770419430,0.88671036,707.86,707.17,1.05648785]
[1735770419632,0.88671036,707.85,707.17,1.05648785]
[1735770419833,0.88671036,707.84,707.21,1.05648785]
[1735770420034,0.88671036,707.83,707.21,1.05648785]
[1735770420234,0.88671036,707.82,707.21,1.05648785]
[1735770420436,0.703,708.06,707.21,1.05648785]
[1735770420637,0.88669463,708.05,707.21,1.05648785]
[1735770420830,0.88669463,708.04,707.21,1.05648785]
[1735770421136,0.88669463,708.03,707.21,1.05648785]
[1735770421431,0.88669463,708.02,707.21,1.05648785]
[1735770421636,0.88669463,708.01,707.21,1.05648785]
[1735770421937,0.88669463,708.0,707.21,1.05648785]
[1735770422135,0.88669463,707.99,707.22,1.05648785]
[1735770422436,0.88669463,707.98,707.22,1.05648785]
[1735770422630,0.703,708.06,707.22,1.05648785]
[1735770422631,0.88669463,707.97,707.22,1.05648785]
[1735770422835,0.88669463,707.96,707.22,1.05648785]
[1735770423033,0.88669463,707.95,707.22,1.05648785]
[1735770423228,0.88669463,707.94,707.22,1.05648785]
[1735770423434,0.88669463,707.93,707.24,1.05648785]
[1735770423630,0.88669463,707.92,707.24,1.05648785]
[1735770423836,0.88669463,707.91,707.24,1.05648785]
[1735770424030,0.88669463,707.9,707.24,1.05648785]
[1735770424238,0.88669463,707.89,707.24,1.05648785]
[1735770424433,0.88669463,707.88,707.24,1.05648785]
[1735770424637,0.88669463,707.87,707.24,1.05648785]
[1735770424937,0.88669463,707.86,707.24,1.05648785]
[1735770425138,0.88669463,707.85,707.24,1.05648785]
[1735770425339,0.88669463,707.84,707.24,1.05648785]
[1735770425539,0.88669463,707.84,707.14,0.28282942]
[1735770425540,0.88694837,707.83,707.25,1.05648785]
[1735770425738,0.88694837,707.82,707.25,1.05648785]
[1735770426037,0.8869393,707.81,707.25,1.05648785]
[1735770426237,0.8869393,707.8,707.25,1.05648785]
[1735770426439,0.703,708.06,707.25,1.05648785]
[1735770426634,0.88702402,708.05,707.25,1.05648785]
[1735770426840,0.88702402,708.04,707.2,1.05648785]
[1735770427039,0.88702402,708.03,707.2,1.05648785]
[1735770427240,0.88702402,708.02,707.2,1.05648785]
[1735770427440,0.88702402,708.01,707.2,1.05648785]
[1735770427639,0.88702402,708.0,707.2,1.05648785]
[1735770427835,0.703,708.06,707.2,1.05648785]
[1735770428141,0.88711282,708.05,707.22,1.05648785]
[1735770428341,0.88711282,708.04,707.22,1.05648785]
[1735770428541,0.88722688,708.03,707.22,1.05648785]
[1735770428835,0.88722688,708.02,707.22,1.05648785]
[1735770429041,0.88722688,708.01,707.23,1.05648785]
[1735770429240,0.88722688,708.0,707.23,1.05648785]
[1735770429440,0.88722688,707.99,707.23,1.05648785]
[1735770429638,0.88722688,707.98,707.23,1.05648785]
[1735770429835,0.88722688,707.97,707.23,1.05648785]
[1735770430038,0.88722688,707.96,707.23,1.05648785]
[1735770430235,0.88722688,707.95,707.23,1.05648785]
[1735770430436,0.88722688,707.94,707.24,1.05648785]
[1735770430642,0.88722688,707.93,707.24,1.05648785]
[1735770430941,0.88722688,707.92,707.24,1.05648785]
[1735770431136,0.88722688,707.91,707.24,1.05648785]
[1735770431334,0.88722688,707.9,707.26,1.05648785]
[1735770431535,0.703,708.06,707.26,1.05648785]
[1735770431735,0.88770386,708.05,707.26,1.05648785]
[1735770431939,0.88770386,708.04,707.26,1.05648785]
[1735770432140,0.88770386,708.03,707.26,1.05648785]
[1735770432335,0.88770386,708.02,707.26,1.05648785]
[1735770432535,0.88770386,708.01,707.26,1.05648785]
[1735770432740,0.88770386,708.0,707.27,1.05648785]
[1735770432937,0.88770386,707.99,707.27,1.05648785]
[1735770433139,0.88770386,707.98,707.27,1.05648785]
[1735770433337,0.88770386,707.97,707.27,1.05648785]
[1735770433537,0.88770386,707.96,707.27,1.05648785]
[1735770433745,0.88770386,707.95,707.22,1.05648785]
[1735770433937,1.47570702,708.01,707.22,1.05648785]
[1735770433938,0.88770386,707.94,707.22,1.05648785]
[1735770434139,0.88770386,707.93,707.22,1.05648785]
[1735770434338,0.88770386,707.92,707.22,1.05648785]
[1735770434542,1.47570702,708.01,707.22,1.05648785]
[1735770434745,0.88827256,708.0,707.22,1.05648785]
[1735770435044,0.88827256,708.0,706.44,2.15699604]
[1735770435045,0.88827256,707.99,707.16,1.05648785]
[1735770435245,0.88827256,707.98,707.16,1.05648785]
[1735770435441,0.88827256,707.97,707.16,1.05648785]
[1735770435641,0.88827256,707.96,707.16,1.05648785]
[1735770435840,1.47570702,708.01,707.16,1.05648785]
[1735770435841,0.88827256,707.95,707.16,1.05648785]
[1735770436044,0.88827256,707.94,707.15,1.05648785]
[1735770436242,0.88827256,707.93,707.15,1.05648785]
[1735770436443,0.88827256,707.92,707.15,1.05648785]
[1735770436643,0.88827256,707.91,707.15,1.05648785]
[1735770436845,0.88827256,707.9,707.15,1.05648785]
[1735770437047,0.88827256,707.89,707.14,1.05648785]
[1735770437345,0.88827256,707.88,707.14,1.05648785]
[1735770437539,0.88827256,707.87,707.14,1.05648785]
[1735770437739,1.47570702,708.01,707.14,1.05648785]
[1735770437740,0.88827256,707.86,707.14,1.05648785]
[1735770437944,0.88827256,707.85,707.14,1.05648785]
[1735770438143,0.88827256,707.84,707.14,1.05648785]
[1735770438340,0.88827256,707.83,707.14,1.05648785]
[1735770438546,0.88827256,707.82,707.14,1.05648785]
[1735770438848,0.88827256,707.81,707.14,1.05648785]
[1735770439147,0.88827256,707.8,707.12,1.05648785]
[1735770439351,0.88827256,707.79,707.12,1.05648785]
[1735770439549,0.88827256,707.78,707.12,1.05648785]
[1735770439745,0.88827256,707.77,707.12,1.05648785]
[1735770439946,0.88827256,707.76,707.12,1.05648785]
[1735770440142,0.88827256,707.75,707.01,1.05648785]
[1735770440343,0.88827256,707.74,707.01,1.05648785]
[1735770440542,0.88827256,707.73,707.01,1.05648785]
[1735770440748,0.88827256,707.72,707.01,1.05648785]
[1735770440948,0.88827256,707.71,707.01,1.05648785]
[1735770441148,0.88827256,707.7,707.01,1.05648785]
[1735770441350,0.88827256,707.69,707.01,1.05648785]
[1735770441550,0.88827256,707.68,706.95,1.05648785]
[1735770441846,0.88827256,707.67,706.95,1.05648785]
[1735770442051,0.88827256,707.66,706.95,1.05648785]
[1735770442247,0.88827256,707.65,706.95,1.05648785]
[1735770442450,0.88827256,707.64,706.89,1.05648785]
[1735770442648,0.88827256,707.63,706.89,1.05648785]
[1735770442846,0.88827256,707.62,706.89,1.05648785]
[1735770443051,0.88827256,707.61,706.89,1.05648785]
[1735770443254,0.88827256,707.6,706.89,1.05648785]
[1735770443453,0.88827256,707.59,706.83,1.05648785]
[1735770443653,0.88827256,707.58,706.83,1.05648785]
[1735770443855,0.88947099,707.57,706.83,1.05648785]
[1735770444045,0.88947099,707.56,706.83,1.05648785]
[1735770444245,0.704,707.65,706.8,1.05648785]
[1735770444246,0.88947099,707.55,706.8,1.05648785]
[1735770444447,0.88947099,707.54,706.8,1.05648785]
[1735770444645,0.88947099,707.53,706.8,1.05648785]
[1735770444850,0.88947099,707.52,706.8,1.05648785]
[1735770445052,0.88947099,707.51,706.8,1.05648785]
[1735770445253,0.88947099,707.5,706.77,1.05648785]
[1735770445452,0.704,707.65,706.77,1.05648785]
[1735770445453,0.88947099,707.49,706.77,1.05648785]
[1735770445753,0.88947099,707.48,706.77,1.05648785]
[1735770446052,0.88947099,707.47,706.77,1.05648785]
[1735770446248,0.704,707.65,706.75,1.05648785]
[1735770446453,0.88917775,707.64,706.75,1.05648785]
[1735770446652,0.88917775,707.63,706.75,1.05648785]
[1735770446848,0.88917775,707.62,706.75,1.05648785]
[1735770447053,0.704,707.65,706.75,1.05648785]
[1735770447054,0.88906599,707.61,706.75,1.05648785]
[1735770447253,0.88906599,707.6,706.75,1.05648785]
[1735770447454,0.88906599,707.59,706.75,1.05648785]
[1735770447650,0.88906599,707.58,706.75,1.05648785]
[1735770447847,0.88906599,707.57,706.75,1.05648785]
[1735770448050,0.88906599,707.56,706.75,1.05648785]
[1735770448355,0.88906599,707.55,706.75,1.05648785]
[1735770448556,0.88906599,707.54,706.7,1.05648785]
[1735770448755,0.88906599,707.53,706.7,1.05648785]
[1735770448952,0.88906599,707.52,706.7,1.05648785]
[1735770449157,0.88906599,707.51,706.7,1.05648785]
[1735770449350,0.88906599,707.5,706.7,1.05648785]
[1735770449552,0.88906599,707.49,706.7,1.05648785]
[1735770449754,0.88906599,707.49,705.89,2.15699604]
[1735770449755,0.88906599,707.48,706.69,1.05648785]
[1735770449954,0.88906599,707.47,706.69,1.05648785]
[1735770450151,0.88906599,707.46,706.69,1.05648785]
[1735770450351,0.88906599,707.45,706.69,1.05648785]
[1735770450552,0.88906599,707.44,706.69,1.05648785]
[1735770450756,0.88906599,707.43,706.66,1.05648785]
[1735770450956,0.88906599,707.42,706.66,1.05648785]
[1735770451252,0.88906599,707.41,706.66,1.05648785]
[1735770451458,0.88906599,707.4,706.66,1.05648785]
[1735770451758,0.88906599,707.39,706.66,1.05648785]
[1735770451958,0.88906599,707.39,705.91,2.15699604]
[1735770451959,0.704,707.65,706.64,1.05648785]
[1735770452153,0.88839169,707.64,706.64,1.05648785]
[1735770452354,0.88839169,707.63,706.64,1.05648785]
[1735770452552,0.88839169,707.62,706.64,1.05648785]
[1735770452759,0.88839169,707.61,706.64,1.05648785]
[1735770452953,0.704,707.65,706.64,1.05648785]
[1735770453160,0.704,707.65,706.63,1.05648785]
[1735770453161,0.88827271,707.64,706.63,1.05648785]
[1735770453458,0.704,707.65,706.63,1.05648785]
[1735770453658,0.88816951,707.64,706.63,1.05648785]
[1735770453855,0.88816951,707.63,706.63,1.05648785]
[1735770454057,0.88816951,707.62,706.63,1.05648785]
[1735770454259,0.704,707.65,706.6,1.05648785]
[1735770454260,0.88816951,707.61,706.6,1.05648785]
[1735770454558,0.88816951,707.6,706.6,1.05648785]
[1735770454758,0.88816951,707.59,706.6,1.05648785]
[1735770454958,0.88816951,707.58,706.6,1.05648785]
[1735770455158,0.704,707.65,706.6,1.05648785]
[1735770455159,0.88816951,707.57,706.6,1.05648785]
[1735770455360,0.88816951,707.56,706.54,1.05648785]
[1735770455559,0.88804435,707.55,706.54,1.05648785]
[1735770455758,0.88804435,707.54,706.54,1.05648785]
[1735770455958,0.88804435,707.53,706.54,1.05648785]
[1735770456159,0.88804111,707.52,706.54,1.05648785]
[1735770456351,0.88804111,707.51,706.54,1.05648785]
[1735770456551,0.88804111,707.5,706.54,1.05648785]
[1735770456753,0.88804111,707.49,706.54,1.05648785]
[1735770456957,0.88804111,707.48,706.54,1.05648785]
[1735770457153,0.88804111,707.47,706.54,1.05648785]
[1735770457354,0.88804111,707.46,706.54,1.05648785]
[1735770457556,0.88804111,707.45,706.54,1.05648785]
[1735770457757,0.88804111,707.44,706.54,1.05648785]
[1735770458058,0.88804111,707.43,706.54,1.05648785]
[1735770458354,0.704,707.65,706.54,1.05648785]
[1735770458554,0.88797408,707.64,706.54,1.05648785]
[1735770458752,0.88797408,707.63,706.55,1.05648785]
[1735770458955,0.88797408,707.62,706.55,1.05648785]
[1735770459155,0.88793693,707.61,706.55,1.05648785]
[1735770459458,0.88793693,707.6,706.55,1.05648785]
[1735770459659,0.88793693,707.59,706.55,1.05648785]
[1735770459859,0.88793693,707.58,706.62,1.05648785]
[1735770460053,0.88793693,707.57,706.62,1.05648785]
[1735770460254,0.704,707.65,706.62,1.05648785]
[1735770460461,0.88797584,707.64,706.62,1.05648785]
[1735770460656,0.88797584,707.63,706.62,1.05648785]
[1735770460855,0.88797584,707.62,706.62,1.05648785]
[1735770461053,0.88797584,707.61,706.62,1.05648785]
[1735770461361,0.704,707.65,706.62,1.05648785]
[1735770461561,0.8879878,707.64,706.73,1.05648785]
[1735770461761,0.8879878,707.63,706.73,1.05648785]
[1735770462062,0.8879878,707.62,706.73,1.05648785]
[1735770462258,0.88803515,707.61,706.73,1.05648785]
[1735770462563,1.47632785,707.95,706.73,1.05648785]
[1735770462863,0.88809874,707.94,706.87,1.05648785]
[1735770463061,0.88809874,707.93,706.87,1.05648785]
[1735770463257,0.88809874,707.92,706.87,1.05648785]
[1735770463460,0.88809874,707.91,706.87,1.05648785]
[1735770463658,0.88809874,707.9,706.87,1.05648785]
[1735770463858,0.703,707.91,706.87,1.05648785]
[1735770463859,0.88809874,707.89,706.87,1.05648785]
[1735770464060,0.88809874,707.88,706.87,1.05648785]
[1735770464257,0.88809874,707.87,706.87,1.05648785]
[1735770464555,0.88809874,707.86,706.87,1.05648785]
[1735770464759,0.703,707.91,706.87,1.05648785]
[1735770464760,0.88824417,707.85,706.87,1.05648785]
[1735770464954,0.88824417,707.84,706.87,1.05648785]
[1735770465259,0.88824417,707.83,706.87,1.05648785]
[1735770465458,0.8882661,707.82,706.87,1.05648785]
[1735770465663,0.8882661,707.81,706.87,1.05648785]
[1735770465864,0.8882661,707.8,706.87,1.05648785]
[1735770466063,0.8882661,707.79,706.87,1.05648785]
[1735770466263,0.8882661,707.78,706.87,1.05648785]
[1735770466465,0.8882661,707.77,706.87,1.05648785]
[1735770466664,0.8882661,707.76,706.87,1.05648785]
[1735770466859,0.8882661,707.75,706.87,1.05648785]
[1735770467063,0.8882661,707.74,706.87,1.05648785]
[1735770467259,0.8882661,707.73,706.87,1.05648785]
[1735770467458,0.8882661,707.72,706.87,1.05648785]
[1735770467660,0.8882661,707.71,706.87,1.05648785]
[1735770467865,0.8882661,707.7,706.87,1.05648785]
[1735770468165,0.8882661,707.69,706.87,1.05648785]
[1735770468362,0.8882661,707.68,706.87,1.05648785]
[1735770468562,0.703,707.91,706.87,1.05648785]
[1735770468563,0.88851726,707.67,706.87,1.05648785]
[1735770468759,0.88851726,707.66,706.87,1.05648785]
[1735770468964,0.88851726,707.65,706.87,1.05648785]
[1735770469165,0.88851726,707.64,706.87,1.05648785]
[1735770469367,0.88851726,707.64,706.48,1.05648785]
[1735770469368,0.88851726,707.63,707.01,1.05648785]
[1735770469665,0.88851726,707.62,707.01,1.05648785]
[1735770469868,0.88851726,707.61,707.01,1.05648785]
[1735770470164,0.88851726,707.6,707.01,1.05648785]
[1735770470364,0.703,707.91,707.06,1.05648785]
[1735770470365,0.88851726,707.59,707.06,1.05648785]
[1735770470562,0.703,707.91,707.06,1.05648785]
[1735770470761,0.88866033,707.9,707.06,1.05648785]
[1735770470961,0.88866033,707.89,707.06,1.05648785]
[1735770471164,0.88866033,707.88,707.06,1.05648785]
[1735770471369,0.88866033,707.87,707.06,1.05648785]
[1735770471563,0.88870814,707.86,707.06,1.05648785]
[1735770471764,0.703,707.91,707.06,1.05648785]
[1735770471765,0.88870814,707.85,707.06,1.05648785]
[1735770471964,0.88870814,707.84,707.06,1.05648785]
[1735770472166,0.88870814,707.83,707.06,1.05648785]
[1735770472366,0.88870814,707.82,707.06,1.05648785]
[1735770472567,0.88870814,707.81,707.06,1.05648785]
[1735770472765,0.88870814,707.8,707.06,1.05648785]
[1735770472965,0.88870814,707.79,707.05,1.05648785]
[1735770473165,0.88870814,707.78,707.05,1.05648785]
[1735770473366,0.88870814,707.77,707.05,1.05648785]
[1735770473667,0.88870814,707.76,707.05,1.05648785]
[1735770473967,0.703,707.91,707.03,1.05648785]
[1735770473968,0.88870814,707.75,707.03,1.05648785]
[1735770474267,0.88870814,707.74,707.03,1.05648785]
[1735770474466,0.88870814,707.73,707.03,1.05648785]
[1735770474668,0.88870814,707.72,707.03,1.05648785]
[1735770474868,0.88870814,707.71,707.03,1.05648785]
[1735770475069,0.88870814,707.7,707.03,1.05648785]
[1735770475260,0.88870814,707.69,707.03,1.05648785]
[1735770475462,0.88870814,707.68,707.03,1.05648785]
[1735770475662,0.88870814,707.67,707.03,1.05648785]
[1735770475867,0.88870814,707.66,707.03,1.05648785]
[1735770476068,0.88870814,707.65,707.03,1.05648785]
[1735770476261,0.88870814,707.64,707.03,1.05648785]
[1735770476466,0.88870814,707.63,707.03,1.05648785]
[1735770476666,0.703,707.91,707.02,1.05648785]
[1735770476667,0.88870814,707.62,707.02,1.05648785]
[1735770476969,0.88870814,707.61,707.02,1.05648785]
[1735770477164,0.703,707.91,707.02,1.05648785]
[1735770477369,0.88906446,707.9,707.02,1.05648785]
[1735770477569,0.88906446,707.89,707.02,1.05648785]
[1735770477767,0.88914171,707.88,707.02,1.05648785]
[1735770477968,0.88914171,707.87,707.02,1.05648785]
[1735770478269,0.88914171,707.87,706.31,2.15699604]
[1735770478270,0.88914171,707.86,707.01,1.05648785]
[1735770478467,0.88914171,707.85,707.01,1.05648785]
[1735770478671,0.88914171,707.84,707.01,1.05648785]
[1735770478863,1.59214171,707.83,707.01,1.05648785]
[1735770479061,0.88914171,707.82,707.01,1.05648785]
[1735770479267,0.88914171,707.81,706.99,1.05648785]
[1735770479472,0.88914171,707.8,706.99,1.05648785]
[1735770479665,0.88914171,707.79,706.99,1.05648785]
[1735770479869,0.88914171,707.78,706.99,1.05648785]
[1735770480068,0.88914171,707.77,706.99,1.05648785]
[1735770480269,0.88914171,707.76,706.99,1.05648785]
[1735770480469,0.88914171,707.75,706.99,1.05648785]
[1735770480663,0.88914171,707.74,706.99,1.05648785]
[1735770480868,0.88914171,707.73,706.99,1.05648785]
[1735770481070,0.88914171,707.72,706.99,1.05648785]
[1735770481270,0.88914171,707.71,706.99,1.05648785]
[1735770481571,0.88914171,707.7,706.99,1.05648785]
[1735770481766,0.88914171,707.69,707.0,1.05648785]
[1735770481972,0.88914171,707.68,707.0,1.05648785]
[1735770482172,0.88914171,707.67,707.0,1.05648785]
[1735770482372,0.88914171,707.66,707.0,1.05648785]
[1735770482672,0.703,707.83,707.0,1.05648785]
[1735770482673,0.88914171,707.65,707.0,1.05648785]
[1735770482872,0.88950526,707.64,707.0,1.05648785]
[1735770483064,0.88950526,707.63,707.0,1.05648785]
[1735770483269,0.88950526,707.62,707.0,1.05648785]
[1735770483467,0.88950526,707.61,707.03,1.05648785]
[1735770483670,0.703,707.83,707.03,1.05648785]
[1735770483972,0.88953879,707.82,707.03,1.05648785]
[1735770484173,0.88953879,707.81,707.03,1.05648785]
[1735770484365,0.88953879,707.8,707.03,1.05648785]
[1735770484567,0.88953879,707.79,707.08,1.05648785]
[1735770484869,0.88953879,707.78,707.08,1.05648785]
[1735770485070,0.88953879,707.77,707.08,1.05648785]
[1735770485270,0.88953879,707.76,707.08,1.05648785]
[1735770485472,0.703,707.83,707.08,1.05648785]
[1735770485473,0.88953879,707.75,707.08,1.05648785]
[1735770485673,0.88953879,707.74,707.08,1.05648785]
[1735770485869,0.88953879,707.73,707.08,1.05648785]
[1735770486069,0.88953879,707.72,707.08,1.05648785]
[1735770486271,0.88953879,707.71,707.08,1.05648785]
[1735770486471,0.88953879,707.7,707.08,1.05648785]
[1735770486672,0.88953879,707.69,707.04,1.05648785]
[1735770486873,0.88953879,707.68,707.04,1.05648785]
[1735770487072,0.88953879,707.67,707.04,1.05648785]
[1735770487267,0.703,707.83,707.04,1.05648785]
[1735770487268,0.88953879,707.66,707.04,1.05648785]
[1735770487471,0.88953879,707.65,707.04,1.05648785]
[1735770487670,0.88953879,707.64,707.04,1.05648785]
[1735770487871,0.88953879,707.63,707.04,1.05648785]
[1735770488069,0.88953879,707.62,707.04,1.05648785]
[1735770488273,0.88953879,707.61,707.04,1.05648785]
[1735770488573,0.88953879,707.6,707.04,1.05648785]
[1735770488775,0.88953879,707.59,707.04,1.05648785]
[1735770489075,0.88998509,707.58,707.1,1.05648785]
[1735770489277,0.88998509,707.57,707.1,1.05648785]
[1735770489470,0.88998509,707.57,706.46,2.15699604]
[1735770489669,0.703,707.83,705.08,3.33372366]
[1735770489870,0.89008714,707.82,705.91,0.28332223]
[1735770490177,0.89008714,707.81,705.91,0.28332223]
[1735770490370,0.89008714,707.8,705.91,0.28332223]
[1735770490571,0.89008714,707.79,705.91,0.28332223]
[1735770490770,0.89008714,707.78,705.91,0.28332223]
[1735770490976,0.89008714,707.77,705.91,0.28332223]
[1735770491174,0.89008714,707.76,705.91,0.28332223]
[1735770491375,0.89008714,707.75,705.91,0.28332223]
[1735770491575,0.89008714,707.74,707.16,1.05764121]
[1735770491773,0.89008714,707.73,707.16,1.05764121]
[1735770491974,0.89008714,707.72,707.16,1.05764121]
[1735770492170,0.89008714,707.71,707.16,1.05764121]
[1735770492476,0.89008714,707.7,707.16,1.05764121]
[1735770492677,0.89033599,707.69,707.12,1.05764121]
[1735770492869,0.89033599,707.68,707.12,1.05764121]
[1735770493070,0.89033599,707.67,707.12,1.05764121]
[1735770493271,0.89033599,707.66,707.12,1.05764121]
[1735770493473,0.89033599,707.65,707.12,1.05764121]
[1735770493675,0.89033599,707.64,707.15,1.05764121]
[1735770493874,0.89033599,707.63,707.15,1.05764121]
[1735770494075,0.89033599,707.62,707.15,1.05764121]
[1735770494277,0.89033599,707.61,707.15,1.05764121]
[1735770494477,0.89033599,707.6,707.15,1.05764121]
[1735770494679,0.89033599,707.59,707.2,1.05764121]
[1735770494879,0.703,707.83,707.2,1.05764121]
[1735770495074,0.89032013,707.82,707.2,1.05764121]
[1735770495381,0.89032013,707.81,707.2,1.05764121]
[1735770495575,0.89032013,707.8,707.2,1.05764121]
[1735770495777,0.89032013,707.79,707.21,1.05764121]
[1735770495974,0.89032013,707.78,707.21,1.05764121]
[1735770496174,0.89032013,707.77,707.21,1.05764121]
[1735770496478,0.89032013,707.76,707.21,1.05764121]
[1735770496679,0.89032013,707.75,707.23,1.05764121]
[1735770496879,0.89032013,707.74,707.23,1.05764121]
[1735770497175,0.89032013,707.73,707.23,1.05764121]
[1735770497381,0.89032013,707.72,707.23,1.05764121]
[1735770497580,0.89032013,707.71,707.23,1.05764121]
[1735770497775,0.89032013,707.7,707.23,1.05764121]
[1735770497979,0.703,707.83,707.23,1.05764121]
[1735770497980,0.89032013,707.69,707.23,1.05764121]
[1735770498177,0.89027282,707.68,707.23,1.05764121]
[1735770498378,0.89027282,707.67,707.23,1.05764121]
[1735770498577,0.89027282,707.66,707.23,1.05764121]
[1735770498776,0.89027282,707.65,707.23,1.05764121]
[1735770498976,0.89027282,707.64,707.23,1.05764121]
[1735770499178,0.89027282,707.63,707.23,1.05764121]
[1735770499383,0.89027282,707.62,707.23,1.05764121]
[1735770499582,0.703,707.83,707.23,1.05764121]
[1735770499583,0.89027282,707.61,707.23,1.05764121]
[1735770499883,0.89027282,707.6,707.23,1.05764121]
[1735770500182,0.89027282,707.59,707.22,1.05764121]
[1735770500383,0.89027282,707.58,707.22,1.05764121]
[1735770500585,0.703,707.83,707.22,1.05764121]
[1735770500777,0.89020551,707.82,707.22,1.05764121]
[1735770500977,0.89020551,707.81,707.22,1.05764121]
[1735770501181,0.89020551,707.8,707.22,1.05764121]
[1735770501381,0.89020551,707.79,707.22,1.05764121]
[1735770501581,0.89020551,707.78,707.22,1.05764121]
[1735770501779,0.89019046,707.77,707.22,1.05764121]
[1735770501978,0.89019046,707.76,707.22,1.05764121]
[1735770502180,0.89019046,707.75,707.22,1.05764121]
[1735770502382,0.89019046,707.74,707.22,1.05764121]
[1735770502579,0.89019046,707.73,707.32,1.05764121]
[1735770502782,0.89019046,707.72,707.32,1.05764121]
[1735770502983,0.89019046,707.71,707.32,1.05764121]
[1735770503185,0.89019046,707.7,707.32,1.05764121]
[1735770503384,0.89019046,707.69,707.32,1.05764121]
[1735770503578,0.89019046,707.68,707.32,1.05764121]
[1735770503782,0.89019046,707.68,706.74,2.15935081]
[1735770503783,0.89019046,707.67,707.28,1.05764121]
[1735770504085,0.89019046,707.66,707.28,1.05764121]
[1735770504279,1.47632785,707.95,707.28,1.05764121]
[1735770504484,0.89019802,707.94,707.28,1.05764121]
[1735770504683,0.89019802,707.93,707.28,1.05764121]
[1735770504885,0.89019802,707.92,707.29,1.05764121]
[1735770505079,0.89019802,707.91,707.29,1.05764121]
[1735770505386,0.89019802,707.9,707.29,1.05764121]
[1735770505579,0.703,707.92,707.29,1.05764121]
[1735770505580,0.89019802,707.89,707.29,1.05764121]
[1735770505779,0.89019802,707.88,707.29,1.05764121]
[1735770505983,0.89019802,707.87,707.29,1.05764121]
[1735770506279,0.89019802,707.87,706.64,2.15935081]
[1735770506280,0.89019802,707.86,707.3,1.05764121]
[1735770506485,0.89019802,707.85,707.3,1.05764121]
[1735770506682,0.89019802,707.84,707.3,1.05764121]
[1735770506880,0.89019802,707.83,707.3,1.05764121]
[1735770507079,0.89019802,707.82,707.3,1.05764121]
[1735770507284,0.89019802,707.82,706.65,2.15935081]
[1735770507285,0.89019802,707.81,707.26,1.05764121]
[1735770507583,0.89019802,707.8,707.26,1.05764121]
[1735770507781,0.89019802,707.79,707.26,1.05764121]
[1735770508084,0.89019802,707.78,707.26,1.05764121]
[1735770508281,0.89019802,707.77,707.26,1.05764121]
[1735770508487,0.89019802,707.76,707.26,1.05764121]
[1735770508682,0.89019802,707.75,707.26,1.05764121]
[1735770508886,0.89019802,707.74,707.26,1.05764121]
[1735770509087,0.89019802,707.73,707.26,1.05764121]
[1735770509288,0.89019802,707.72,707.27,1.05764121]
[1735770509484,0.89019802,707.71,707.27,1.05764121]
[1735770509685,0.89019802,707.7,707.27,1.05764121]
[1735770509887,0.89019802,707.69,707.27,1.05764121]
[1735770510081,0.89019802,707.68,707.27,1.05764121]